[Event "Susha Chess Blitz Women 2022"]
[Site "Shusha"]
[Date "2022.09.24"]
[Round "6"]
[White "Zawadzka, Jolanta"]
[Black "Arabidze, Meri"]
[Result "0-1"]
[ECO "B47"]
[WhiteElo "2401"]
[BlackElo "2422"]
[Annotator "TA"]
[PlyCount "70"]
[EventDate "2022.09.24"]
[EventType "tourn"]
[EventCountry "AZE"]
[SourceTitle "playchess.com"]
[Source "ChessBase"]
[SourceQuality "1"]
[TimeControl "180+2"]

{[%evp 9,70,23,48,18,45,44,37,44,44,45,67,42,51,7,62,61,65,65,63,67,60,62,64,66,74,39,62,-3,-12,-20,0,0,0,0,0,-14,-12,-18,-24,-92,-85,-179,-167,-221,0,-289,-285,-739,-718,-1089,-988,-29990,-29991,-29990,-1104,-29991,-29992,-29993,-29981,-29975,-29976,-29986,-29986]} 1. e4 {[%emt 0:00:01]} c5 {[%emt 0:00:00]} 2. Nf3 e6 3. d4 {[%emt 0:00:02]} cxd4 {[%emt 0:00:01]} 4. Nxd4 {[%emt 0:00:01]} Nc6 {[%emt 0:00:00]} 5. Nc3 {[%emt 0:00:06]} Qc7 {[%emt 0:00:02]} 6. Qd3 {[%emt 0:00:01] B47: Sicilian: Taimanov: 5 Nc3 Qc7 6 f4, 6 g3 and 6 Be2.} a6 {[%emt 0:00:06]} 7. Nxc6 {[%emt 0:00:03]} bxc6 {[%emt 0:00:06] 7...Qxc6 is the modern continuation.} 8. Qg3 {[%emt 0:00:01] White is slightly better.} Qxg3 {[%emt 0:00:10]} 9. hxg3 {[%emt 0:00:02]} e5 {[%emt 0:00:10]} 10. Be3 {[%emt 0:00:20]} Nf6 {[%emt 0:00:02] [#]} 11. O-O-O $146 {[%emt 0:00:14]} ({Predecessor:} 11. Bc4 Bb4 12. f3 d5 13. Bb3 d4 14. a3 Ba5 15. Bd2 dxc3 16. bxc3 O-O 17. g4 {1-0 (37) Sochacki,W (2324)-Couve,M (1489) Europe Echecs INT 2022}) 11... Bb4 {[%emt 0:00:34]} (11... Ng4 $1 $11) 12. f3 {[%emt 0:00:03]} d5 {[%emt 0:00:15]} 13. exd5 {[%emt 0:00:09]} Bxc3 {[%emt 0:00:01]} 14. bxc3 {[%emt 0:00:06]} cxd5 {[%emt 0:00:12]} 15. g4 {[%emt 0:00:11] Black must now prevent g5.} Be6 {[%emt 0:00:04]} 16. Bd3 {[%emt 0:00:06]} Nd7 {[%emt 0:00:28]} 17. Rde1 {[%emt 0:00:32]} (17. Bxh7 $6 g6 $11) (17. Rxh7 Rxh7 18. Bxh7 g6 $15) 17... Ke7 {[%emt 0:00:07]} 18. Bd2 {[%emt 0:00:36]} (18. Bxh7 g6 $11) (18. Rxh7 Rxh7 19. Bxh7 g6 $17) ({Better is} 18. g5 $14) 18... h6 $1 $11 {[%emt 0:00:07]} 19. c4 {[%emt 0:00:10]} dxc4 {[%emt 0:00:07]} 20. Bb4+ {[%emt 0:00:04]} Kf6 {[%emt 0:00:17]} 21. Be4 {[%emt 0:00:01]} Rab8 {[%emt 0:00:01]} 22. Bd6 {[%emt 0:00:02]} Rb6 {[%emt 0:00:37]} 23. Bc7 {[%emt 0:00:01] This bishop pair is nice.} Rb5 {[%emt 0:00:00]} 24. Rh5 {[%emt 0:00:02]} (24. a4 $11 {keeps the balance.} Rb4 25. Bc6) 24... Rc8 $17 {[%emt 0:00:05]} 25. Bd6 {[%emt 0:00:11]} (25. a4 $17 Rb4 26. Ba5 Rxa4 27. Bc3) 25... c3 $19 {[%emt 0:00:01]} 26. Bd3 {[%emt 0:00:31]} (26. a3 $142) 26... Rb2 $2 {[%emt 0:00:12]} (26... Rb6 $19 27. f4 e4 28. Be5+ Nxe5 29. fxe5+ Ke7 30. Rxe4 Rcb8) 27. f4 $2 {[%emt 0:00:08][%mdl 8192] [#]} (27. Rhxe5 $11 {and White has nothing to worry.} g6 28. Ra5 (28. Bxa6 $2 Rc6 $19)) 27... g6 $1 {[%emt 0:00:01] The board is on fire.} ({Worse is} 27... Bxg4 28. Rhxe5 Be6 29. f5 $11) (27... Bxa2 28. fxe5+ Ke6 29. Kd1 $19 (29. Bf5+ $2 Kd5 $19)) 28. Bxe5+ $2 {[%emt 0:00:05]} (28. g5+ Kg7 29. Rh4) 28... Nxe5 {[%emt 0:00:02]} 29. Rhxe5 {[%emt 0:00:01]} Rxa2 {[%emt 0:00:01][%cal Ra2a1]} 30. g5+ {[%emt 0:00:03]} Kg7 {[%emt 0:00:02][%cal Ra2a1]} 31. gxh6+ {[%emt 0:00:01]} Kxh6 {[%emt 0:00:02]} (31... Kh7 $142 32. Kb1 Rb8+ 33. Rb5 axb5 34. Be4 Rb2+ 35. Kc1 Ba2 36. Kd1 Rb1+ 37. Ke2 Bc4+ 38. Kf3 Rxe1 39. Bc6 Re2 40. Be4 Re1 41. Bc6 Re2 42. g3 Rxc2 43. f5 Re2 44. Bd5 c2 45. fxg6+ fxg6 46. Bxc4 bxc4 47. Kxe2 c1=Q 48. Kf3 Rf8+ 49. Ke4 Rf5 50. Kd4 Qc2 51. g4 Qd3#) 32. Kb1 {[%emt 0:00:09]} Rb8+ {[%emt 0:00:03] Black mates.} 33. Bb5 {[%emt 0:00:01]} Rxb5+ {[%emt 0:00:03]} 34. Rxb5 {[%emt 0:00:01]} axb5 {[%emt 0:00:00]} 35. Rxe6 {[%emt 0:00:02]} Rb2+ {[%emt 0:00:01] Weighted Error Value: White=1.01/Black=0.32} ({Not} 35... fxe6 36. Kxa2 g5 37. fxg5+ Kxg5 38. Kb3 $11) 0-1

[Event "Susha Chess Blitz Women 2022"]
[Site "Shusha"]
[Date "2022.09.24"]
[Round "6"]
[White "Mammadova, Gulnar"]
[Black "Dzagnidze, Nana"]
[Result "1-0"]
[ECO "B90"]
[WhiteElo "2382"]
[BlackElo "2526"]
[Annotator "TA"]
[PlyCount "74"]
[EventDate "2022.09.24"]
[EventType "tourn"]
[EventCountry "AZE"]
[SourceTitle "playchess.com"]
[Source "ChessBase"]
[SourceQuality "1"]
[TimeControl "180+2"]

{[%evp 12,74,21,10,19,15,22,8,0,4,12,0,0,0,8,0,0,6,20,-27,-21,-15,0,0,49,51,51,38,36,28,36,35,51,72,76,51,51,51,160,29,47,33,46,0,0,0,0,0,0,0,37,27,25,0,0,0,0,0,98,85,236,244,259,193,275]} 1. e4 {[%emt 0:00:01]} c5 {[%emt 0:00:01]} 2. Nf3 {[%emt 0:00:02]} d6 {[%emt 0:00:01]} 3. d4 {[%emt 0:00:01]} cxd4 {[%emt 0:00:01]} 4. Nxd4 Nf6 5. Nc3 a6 6. h3 {[%emt 0:00:05]} e5 {[%emt 0:00:04]} 7. Nde2 {[%emt 0:00:01]} h5 {[%emt 0:00:04] B90: Sicilian Najdorf: Unusual White 6th moves, 6 Be3 Ng4 and 6 Be3 e5.} 8. Bg5 {[%emt 0:00:01]} Be6 {[%emt 0:00:03]} 9. Bxf6 {[%emt 0:00:04]} Qxf6 {[%emt 0:00:08] The position is equal.} 10. Nd5 {[%emt 0:00:01]} Qd8 {[%emt 0:00:03]} 11. Nec3 {[%emt 0:00:02]} g6 {[%emt 0:00:25]} 12. Bc4 {[%emt 0:00:08]} Bh6 {[%emt 0:00:15]} 13. O-O {[%emt 0:00:12][%cal Bh1f1,Bf1f4,Bf4f6][%mdl 32]} O-O {[%emt 0:00:14]} 14. Bb3 {[%emt 0:00:08]} Nd7 {[%emt 0:00:23] [#]} 15. f4 $146 {[%emt 0:00:38]} (15. a4 $142) ({Predecessor:} 15. a4 Kg7 16. a5 Rc8 17. Ba2 Qg5 18. Qf3 Qd8 19. Qd1 Qg5 {½-½ (19) Cornejo,W (2569)-Nickel,A (2630) ICCF email 2015}) 15... exf4 $11 {[%emt 0:00:08]} 16. Nxf4 {[%emt 0:00:07]} Bxf4 {[%emt 0:00:16]} 17. Rxf4 {[%emt 0:00:02]} Qb6+ {[%emt 0:00:04]} (17... Bxh3 $11 {is more appropriate.} 18. Qxd6 (18. Bxf7+ Rxf7 19. Rxf7 Kxf7 $17) 18... Qg5) 18. Kh1 $14 {[%emt 0:00:07]} Ne5 {[%emt 0:00:02]} 19. Nd5 {[%emt 0:00:22]} Bxd5 {[%emt 0:00:04]} 20. Qxd5 {[%emt 0:00:02]} Kg7 {[%emt 0:00:03]} 21. Raf1 {[%emt 0:00:03]} Qc7 {[%emt 0:00:50]} 22. Rf6 {[%emt 0:00:20]} Rad8 {[%emt 0:00:01]} 23. c3 {[%emt 0:00:02]} b5 {[%emt 0:00:18]} 24. Qd4 {[%emt 0:00:12] [#] Rxf7+ is the strong threat.} Qc5 {[%emt 0:00:03]} (24... Rd7 $14) 25. Qxc5 {[%emt 0:00:15] White is more active.} ({White should play} 25. Rxf7+ $1 $16 Rxf7 26. Rxf7+ Kh8 27. Rb7 Qxd4 28. cxd4) 25... dxc5 $11 {[%emt 0:00:01]} 26. Bd5 {[%emt 0:00:02]} a5 {[%emt 0:00:09]} 27. Ra6 {[%emt 0:00:10]} (27. b3 $1 $14 {was preferrable.}) 27... a4 {[%emt 0:00:03]} 28. Rb6 {[%emt 0:00:01]} Rb8 {[%emt 0:00:02]} 29. Ra6 {[%emt 0:00:05]} h4 {[%emt 0:00:08]} 30. Ra7 {[%emt 0:00:07]} Rb6 {[%emt 0:00:03]} 31. Rc7 {[%emt 0:00:03]} c4 {[%emt 0:00:03]} 32. Re7 {[%emt 0:00:07]} Rf6 {[%emt 0:00:01]} 33. Rxf6 Kxf6 {[%emt 0:00:01]} 34. Rb7 {[%emt 0:00:07]} Nd3 {[%emt 0:00:03]} (34... Kg5 $11 {remains equal.}) 35. Rxb5 $16 {[%emt 0:00:02]} Nf2+ $2 {[%emt 0:00:03] [#]} (35... Rc8 $16) 36. Kg1 $18 {[%emt 0:00:01]} Nd1 {[%emt 0:00:02][%cal Oa4a3]} 37. Bxc4 {[%emt 0:00:03] Strongly threatening e5+.} Ne3 {[%emt 0:00:00] Weighted Error Value: White=0.16 (very precise) /Black=0.23 (precise)} (37... Re8 $142 38. Rb6+ Kg7) 1-0

[Event "Susha Chess Blitz Women 2022"]
[Site "Shusha"]
[Date "2022.09.24"]
[Round "6"]
[White "Balajayeva, Khanim"]
[Black "Efroimski, Marsel"]
[Result "1/2-1/2"]
[ECO "B22"]
[WhiteElo "2379"]
[BlackElo "2462"]
[Annotator "TA"]
[PlyCount "203"]
[EventDate "2022.09.24"]
[EventType "tourn"]
[EventCountry "AZE"]
[SourceTitle "playchess.com"]
[Source "ChessBase"]
[SourceQuality "1"]
[TimeControl "180+2"]

{[%evp 32,203,0,0,0,-32,-15,-16,-15,-19,-13,-60,-60,-66,-59,-82,-93,-108,-90,-206,-42,-36,0,-30,-8,-7,0,0,0,0,0,0,0,0,0,0,0,0,0,0,0,0,0,0,0,0,0,0,0,0,0,0,0,0,0,0,0,0,0,0,0,0,0,0,0,0,0,0,0,0,0,0,0,0,0,0,0,0,0,0,0,0,0,0,0,0,0,0,0,0,0,0,0,0,0,0,0,0,0,0,0,0,0,0,0,0,0,0,0,0,0,0,0,0,0,0,0,0,0,0,0,0,0,0,0,0,0,0,0,0,0,0,0,0,0,0,0,0,0,0,0,0,0,0,0,0,0,0,0,0,0,0,0,0,0,0,0,0,0,0,0,0,0,0,0,0,0,0,0,0,0,0,0,0]} 1. e4 c5 2. c3 Nf6 3. e5 Nd5 {[%emt 0:00:03]} 4. d4 {[%emt 0:00:02]} cxd4 {[%emt 0:00:02]} 5. Nf3 {[%emt 0:00:01]} Nc6 {[%emt 0:00:04]} 6. cxd4 {[%emt 0:00:01]} d6 {[%emt 0:00:01]} 7. Bc4 {[%emt 0:00:01]} Nb6 {[%emt 0:00:00]} 8. Bb5 {[%emt 0:00:01]} dxe5 {[%emt 0:00:02]} 9. Nxe5 {[%emt 0:00:01]} Bd7 {[%emt 0:00:01]} 10. Nxd7 {[%emt 0:00:02]} Qxd7 {[%emt 0:00:01]} 11. Nc3 {[%emt 0:00:01]} e6 {[%emt 0:00:01]} 12. O-O {[%emt 0:00:01]} Rd8 {[%emt 0:00:01]} 13. Be3 {[%emt 0:00:01]} a6 {[%emt 0:00:13]} 14. Bxc6 {[%emt 0:00:34]} Qxc6 {[%emt 0:00:01]} 15. Rc1 {[%emt 0:00:00]} Nd5 {[%emt 0:00:01]} 16. Ne4 {[%emt 0:00:54]} Qd7 {[%emt 0:00:05]} (16... Nxe3 $5 17. Qd3 $8 Nc2 $11) 17. Qf3 {[%emt 0:00:05]} Be7 {[%emt 0:00:09]} 18. Nc5 {[%emt 0:00:02]} Bxc5 {[%emt 0:00:02]} 19. dxc5 {[%emt 0:00:01]} O-O {[%emt 0:00:06]} 20. Rfd1 {[%emt 0:00:06]} Qa4 {[%emt 0:00:10]} 21. Bd4 {[%emt 0:00:42]} (21. a3 $11) 21... Qxa2 $15 {[%emt 0:00:32]} 22. Qg4 {[%emt 0:00:01]} g6 {[%emt 0:00:07]} 23. Qg3 {[%emt 0:00:05]} f6 {[%emt 0:00:08]} 24. h4 {[%emt 0:00:11]} e5 {[%emt 0:00:03]} 25. Bc3 {[%emt 0:00:19]} (25. Be3 $17) 25... Nxc3 $2 {[%emt 0:00:04]} ({Black should try} 25... Nf4 $19 26. Qg4 h5) 26. Qxc3 $15 {[%emt 0:00:01]} Qf7 {[%emt 0:00:09]} 27. b4 {[%emt 0:00:04]} Qe7 {[%emt 0:00:10]} 28. h5 {[%emt 0:00:01]} Rxd1+ {[%emt 0:00:11]} 29. Rxd1 {[%emt 0:00:01]} Rd8 {[%emt 0:00:06]} 30. Rxd8+ {[%emt 0:00:16]} Qxd8 {[%emt 0:00:01]} 31. hxg6 {[%emt 0:00:01]} hxg6 {[%emt 0:00:02]} 32. Qc4+ {[%emt 0:00:01]} Kg7 {[%emt 0:00:03]} 33. Qe6 $1 {[%emt 0:00:01]} Qd1+ {[%emt 0:00:15]} 34. Kh2 {[%emt 0:00:00]} Qh5+ 35. Kg1 Qd1+ {[%emt 0:00:02]} 36. Kh2 {[%emt 0:00:01]} Qd8 {[%emt 0:00:06]} 37. g4 {[%emt 0:00:10]} g5 {[%emt 0:00:09]} 38. c6 {[%emt 0:00:14]} bxc6 {[%emt 0:00:05]} 39. Qxc6 {[%emt 0:00:01]} Qe7 {[%emt 0:00:13]} 40. Qxa6 {[%emt 0:00:06]} Qxb4 {[%emt 0:00:01]} 41. f3 {[%emt 0:00:04]} Qd2+ {[%emt 0:00:01]} 42. Kh3 {[%emt 0:00:03]} Qd7 {[%emt 0:00:02]} 43. Kg3 {[%emt 0:00:03]} Qc7 {[%emt 0:00:01]} 44. Kg2 {[%emt 0:00:02]} Kf7 {[%emt 0:00:02]} 45. Qa2+ {[%emt 0:00:01]} Kg7 {[%emt 0:00:01]} 46. Qa6 {[%emt 0:00:02]} Qe7 {[%emt 0:00:01]} 47. Qc4 {[%emt 0:00:03]} Qd6 {[%emt 0:00:03]} 48. Qa4 {[%emt 0:00:04]} Qd2+ {[%emt 0:00:03]} 49. Kh3 {[%emt 0:00:00]} Qd5 {[%emt 0:00:03]} 50. Kg2 {[%emt 0:00:03]} Qb7 {[%emt 0:00:07]} 51. Qc4 {[%emt 0:00:04]} Qf7 {[%emt 0:00:02]} 52. Qc5 {[%emt 0:00:01]} Qe8 {[%emt 0:00:01]} 53. Qd6 {[%emt 0:00:02]} e4 {[%emt 0:00:04]} 54. Qc7+ {[%emt 0:00:04]} Kh6 {[%emt 0:00:07]} 55. Qc3 {[%emt 0:00:00]} exf3+ {[%emt 0:00:06]} 56. Qxf3 {[%emt 0:00:01]} Kg7 {[%emt 0:00:01]} 57. Qb7+ {[%emt 0:00:00]} Qf7 {[%emt 0:00:01]} 58. Qe4 {[%emt 0:00:01]} Qc7 {[%emt 0:00:01]} 59. Kh3 {[%emt 0:00:02]} Qc3+ {[%emt 0:00:02]} 60. Kg2 {[%emt 0:00:01]} Qe5 {[%emt 0:00:01]} 61. Qb7+ {[%emt 0:00:01]} Kg6 {[%emt 0:00:02]} 62. Qb1+ {[%emt 0:00:00]} Kf7 {[%emt 0:00:01]} 63. Qb7+ {[%emt 0:00:01]} Ke6 {[%emt 0:00:02]} 64. Qc8+ {[%emt 0:00:02]} Kd6 {[%emt 0:00:01]} 65. Qb8+ {[%emt 0:00:00]} Kd5 {[%emt 0:00:02]} 66. Qb5+ {[%emt 0:00:02]} Ke6 {[%emt 0:00:03]} 67. Qe8+ {[%emt 0:00:00]} Kd6 {[%emt 0:00:01]} 68. Qb8+ {[%emt 0:00:01]} Kc5 {[%emt 0:00:02]} 69. Qa7+ {[%emt 0:00:01]} Kc4 {[%emt 0:00:01]} 70. Qa4+ {[%emt 0:00:01]} Kd3 {[%emt 0:00:01]} 71. Qd1+ {[%emt 0:00:02]} Ke4 {[%emt 0:00:02]} 72. Qe2+ {[%emt 0:00:03]} Kd5 {[%emt 0:00:02]} 73. Qb5+ {[%emt 0:00:00]} Kd4 {[%emt 0:00:01]} (73... Ke6 $5 {[%cal Re5b5]} 74. Qc6+ Ke7 $17) 74. Qb2+ {[%emt 0:00:01]} Kc4 {[%emt 0:00:01]} 75. Qa2+ {[%emt 0:00:02]} Kd3 {[%emt 0:00:01]} 76. Qb1+ $1 {[%emt 0:00:02]} Kd2 {[%emt 0:00:07]} 77. Qa2+ {[%emt 0:00:03]} Kc1 {[%emt 0:00:01]} 78. Qc4+ {[%emt 0:00:02]} Kd1 {[%emt 0:00:02]} 79. Qd3+ {[%emt 0:00:03]} Ke1 {[%emt 0:00:05]} 80. Qb1+ {[%emt 0:00:08]} Ke2 {[%emt 0:00:02]} (80... Kd2 $5 {[%cal Re5e2]} 81. Qa2+ Kd3 82. Qb1+ Kd2 $17) 81. Qc2+ {[%emt 0:00:02]} Ke3 {[%emt 0:00:01]} 82. Qc1+ {[%emt 0:00:04]} Ke4 {[%emt 0:00:02]} 83. Qe1+ {[%emt 0:00:04]} Kd5 {[%emt 0:00:03]} 84. Qa5+ {[%emt 0:00:00]} Ke6 {[%emt 0:00:01]} 85. Qb6+ {[%emt 0:00:02]} Kf7 {[%emt 0:00:01]} 86. Qb7+ {[%emt 0:00:01]} Qe7 {[%emt 0:00:01]} 87. Qb3+ {[%emt 0:00:01]} Kg7 {[%emt 0:00:01]} 88. Qd3 {[%emt 0:00:03]} Qe6 {[%emt 0:00:02]} 89. Kg3 {[%emt 0:00:06]} Qe7 {[%emt 0:00:06]} 90. Qb3 {[%emt 0:00:02]} Kf8 {[%emt 0:00:02]} 91. Qb8+ {[%emt 0:00:02]} Kf7 {[%emt 0:00:02]} 92. Qb3+ {[%emt 0:00:01]} Qe6 {[%emt 0:00:01]} 93. Qb7+ {[%emt 0:00:00]} Ke8 {[%emt 0:00:01]} 94. Qb8+ {[%emt 0:00:01]} Ke7 {[%emt 0:00:01]} 95. Qc7+ {[%emt 0:00:03]} Qd7 {[%emt 0:00:01]} 96. Qc3 {[%emt 0:00:02]} Qd6+ {[%emt 0:00:01]} 97. Kh3 {[%emt 0:00:02]} Ke6 {[%emt 0:00:04]} 98. Qe3+ {[%emt 0:00:04]} Qe5 {[%emt 0:00:02]} 99. Qb6+ {[%emt 0:00:00]} Kf7 {[%emt 0:00:00]} 100. Qb3+ {[%emt 0:00:02]} Kg6 {[%emt 0:00:04]} 101. Qg8+ {[%emt 0:00:02]} Kh6 {[%emt 0:00:01]} 102. Qh8+ 1/2-1/2

[Event "Susha Chess Blitz Women 2022"]
[Site "Shusha"]
[Date "2022.09.24"]
[Round "6"]
[White "Beydullayeva, Govhar"]
[Black "Fataliyeva, Ulviyya"]
[Result "0-1"]
[ECO "D17"]
[WhiteElo "2346"]
[BlackElo "2408"]
[Annotator "TA"]
[PlyCount "72"]
[EventDate "2022.09.24"]
[EventType "tourn"]
[EventCountry "AZE"]
[SourceTitle "playchess.com"]
[Source "ChessBase"]
[SourceQuality "1"]
[TimeControl "180+2"]

{[%evp 14,71,11,-37,-37,-34,-28,-32,-18,-23,-25,-37,-34,-32,-38,-31,0,-13,-1,0,0,0,0,0,0,0,0,0,32,35,68,-8,-7,-22,-10,-12,0,-335,110,0,66,-703,-704,-1956,-1956,-5589,-1784,-29995,-113,-112,-114,-1502,-1545,-29996,0,-940,-947,-29998,-29997,-29999]} 1. d4 {[%emt 0:00:01]} d5 {[%emt 0:00:05]} 2. c4 {[%emt 0:00:01]} c6 {[%emt 0:00:00]} 3. Nf3 {[%emt 0:00:03]} Nf6 {[%emt 0:00:02]} 4. Nc3 {[%emt 0:00:01]} dxc4 {[%emt 0:00:01]} 5. a4 {[%emt 0:00:01]} Bf5 {[%emt 0:00:01]} 6. Ne5 {[%emt 0:00:06]} e6 {[%emt 0:00:26]} 7. Nxc4 {[%emt 0:00:16]} Bb4 {[%emt 0:00:01]} 8. e3 {[%emt 0:00:17]} (8. f3 $11) 8... O-O {[%emt 0:00:14] D17: Slav Defence: 5 a4 Bf5: Lines with 6 Nh4 and 6 Ne5.} 9. Be2 {[%emt 0:00:23]} c5 {[%emt 0:00:01]} 10. O-O {[%emt 0:00:05]} cxd4 {[%emt 0:00:01] Black is slightly better.} 11. exd4 {[%emt 0:00:01]} Nc6 {[%emt 0:00:02]} 12. Be3 {[%emt 0:00:13]} Nd5 {[%emt 0:00:01]} 13. Rc1 {[%emt 0:00:15]} Rc8 {[%emt 0:00:25]} 14. Qb3 {[%emt 0:00:02] [#]} Bxc3 $146 {[%emt 0:00:08]} ({Predecessor:} 14... b6 15. Rfd1 Be7 16. Nxd5 Qxd5 17. Bf3 Be4 18. Bxe4 Qxe4 19. Qb5 Nb4 20. Qd7 Qd5 21. Qxe7 Rxc4 22. Rxc4 Qxc4 {½-½ (44) Nguyen,T (1935)-Nguyen,D (2127) Ho Chi Minh City 2013}) 15. bxc3 {[%emt 0:00:02]} Be4 {[%emt 0:00:27]} 16. Rfd1 {[%emt 0:00:21]} ({Wrong is} 16. Qxb7 $2 Rb8 $1 17. Qxc6 Nxc3 $1 {[%mdl 512]} 18. Qxe4 Nxe4 $19) 16... Nxe3 {[%emt 0:00:15]} 17. Nxe3 {[%emt 0:00:11]} Na5 {[%emt 0:00:15]} 18. Qb4 {[%emt 0:00:07]} Nc6 {[%emt 0:00:11]} 19. Qb2 {[%emt 0:00:09]} Qg5 {[%emt 0:00:05]} 20. Qb5 {[%emt 0:00:40]} f5 {[%emt 0:00:04][%cal Bf7f5,Bf5f4,Bf4f3][%mdl 32]} 21. Bd3 {[%emt 0:00:11]} a6 {[%emt 0:00:02]} 22. Qb2 {[%emt 0:00:14]} ({And not} 22. Qxb7 Nxd4 $1 23. Bxe4 Ne2+ 24. Kf1 Nxc1 25. Rxc1 fxe4 26. Qxe4 Qf4 27. Qxf4 Rxf4 $17) (22. Qb3 $14) 22... Bxd3 $11 {[%emt 0:00:15]} 23. Rxd3 {[%emt 0:00:00]} f4 {[%emt 0:00:01]} 24. Nf1 {[%emt 0:00:03]} f3 {[%emt 0:00:01][%csl Gf3][%cal Rg5g2]} 25. g3 {[%emt 0:00:06][%mdl 8192]} (25. Ne3 $11) 25... Ne7 $2 {[%emt 0:00:05]} (25... Qf5 $19 26. d5 Qxd3 27. dxc6 bxc6) 26. Qd2 {[%emt 0:00:01]} ({Better is} 26. Nd2 $1 $16) 26... Qh5 {[%emt 0:00:00]} (26... Qf5 $11 27. Qd1 (27. Ne3 Qh3 $11) 27... Rc4) 27. Re1 $2 {[%emt 0:00:02][%mdl 8192]} (27. h4 $14) 27... Qh3 $19 {[%emt 0:00:02][%csl Gf3][%cal Rh3g2]} 28. Ne3 {[%emt 0:00:01] Prevents Qg2+.} Nd5 {[%emt 0:00:01][%cal Be7d5,Bd5c3,Bc3e2][%mdl 32]} 29. Qa2 {[%emt 0:00:03]} Kh8 {[%emt 0:00:05]} (29... Rf6 $142 30. Qe2 fxe2 31. Rxe2 Nf4 $1 {[%mdl 512]}) 30. Rf1 {[%emt 0:00:01]} Rxc3 $2 {[%emt 0:00:05]} (30... Rf6 31. Qc4 Rxc4 32. Rd2 Rh6 $1 33. Re1 Qxh2+ 34. Kf1 Qh1#) 31. Rxc3 $17 {[%emt 0:00:01]} Nxc3 {[%emt 0:00:01]} 32. Qb2 $2 {[%emt 0:00:04][%mdl 8192]} (32. Qa3 $17 Rc8 33. Kh1) 32... Ne2+ $19 {[%emt 0:00:03]} 33. Kh1 {[%emt 0:00:01]} h6 $2 {[%emt 0:00:04]} (33... Rf6 {mates} 34. Qb5 Qxh2+ 35. Kxh2 Rh6+ 36. Qh5 Rxh5#) 34. Rd1 $2 {[%emt 0:00:03][%mdl 8192] [#]} (34. Qxb7 $11 Nxd4 35. Rc1) 34... Rf5 $1 {[%emt 0:00:01][%cal Oh3h2][%mdl 512] ( -> ...Qxh2+!)} 35. d5 {[%emt 0:00:03]} (35. g4 Rf4) 35... Rh5 {[%emt 0:00:01][%csl Gh5][%cal Rh3h2]} 36. Nf1 {[%emt 0:00:01]} Qg2# {[%emt 0:00:01] Weighted Error Value: White=1.67/Black=0.71} 0-1

[Event "Susha Chess Blitz Women 2022"]
[Site "Shusha"]
[Date "2022.09.24"]
[Round "6"]
[White "Ozturk Orenli, Kubra"]
[Black "Mammadzada, Gunay"]
[Result "0-1"]
[ECO "D10"]
[WhiteElo "2319"]
[BlackElo "2473"]
[Annotator "TA"]
[PlyCount "82"]
[EventDate "2022.09.24"]
[EventType "tourn"]
[EventCountry "AZE"]
[SourceTitle "playchess.com"]
[Source "ChessBase"]
[SourceQuality "1"]
[TimeControl "180+2"]

{[%evp 9,82,-15,0,0,30,-6,18,0,0,-14,0,0,-9,-6,0,-23,-16,-14,-16,-22,-15,-27,21,15,21,8,29,53,45,33,52,0,0,-31,-25,-34,-21,-116,-114,-110,-126,-101,-65,-238,-226,-195,0,0,0,0,0,-60,0,0,0,0,0,0,0,0,0,-1849,-2377,-12839,-12836,-12839,-480,-12837,-480,-29986,-29987,-29989,-29990,-29991,-29989]} 1. d4 {[%emt 0:00:02]} d5 {[%emt 0:00:01]} 2. c4 {[%emt 0:00:01]} c6 {[%emt 0:00:03]} 3. cxd5 {[%emt 0:00:02]} cxd5 {[%emt 0:00:01]} 4. Bg5 {[%emt 0:00:04]} Nc6 {[%emt 0:00:02]} 5. Nf3 {[%emt 0:00:02]} Qb6 {[%emt 0:00:07]} 6. Nc3 {[%emt 0:00:07] D10: Slav Defence: 3 cxd5 (without early Nf3) and 3 Nc3.} e6 {[%emt 0:00:04]} 7. Qd2 {[%emt 0:00:19] [#]} Nge7 $146 {[%emt 0:00:06]} ({Predecessor:} 7... Bd7 8. e3 a6 9. Rc1 Na5 10. Bd3 Bb4 11. O-O Ne7 12. Bxe7 Bxe7 13. e4 dxe4 14. Nxe4 {0-1 (33) Tomilova,E (2353)-Huda,M (2128) Chess.com INT 2020}) 8. e3 {[%emt 0:00:21] The position is equal.} Ng6 $1 {[%emt 0:00:34]} 9. Nh4 {[%emt 0:00:45]} Bd7 {[%emt 0:00:21]} 10. Nxg6 {[%emt 0:00:05]} hxg6 {[%emt 0:00:01]} 11. Bf4 {[%emt 0:00:13]} Rc8 {[%emt 0:00:05]} 12. Be2 {[%emt 0:00:13]} Na5 {[%emt 0:00:14]} 13. O-O {[%emt 0:00:09]} Nc4 {[%emt 0:00:01]} 14. Bxc4 {[%emt 0:00:03]} Rxc4 {[%emt 0:00:01]} 15. Rac1 {[%emt 0:00:10]} Bd6 {[%emt 0:00:32]} (15... Qa5 {is more appropriate.}) 16. Bxd6 {[%emt 0:00:22]} Qxd6 {[%emt 0:00:01][%csl Gh8][%cal Rd6h2]} 17. g3 {[%emt 0:00:02][%cal Oc3e4]} g5 {[%emt 0:00:13] [#]} 18. Ne4 $1 {[%emt 0:00:09]} Qe7 {[%emt 0:00:04] And now ...Rxc1 would win.} 19. Rxc4 {[%emt 0:00:04]} dxc4 {[%emt 0:00:01]} 20. f4 {[%emt 0:00:22]} (20. d5 $14) 20... gxf4 $11 {[%emt 0:00:26]} 21. exf4 {[%emt 0:00:01]} Bc6 {[%emt 0:00:01]} 22. Nc3 {[%emt 0:00:03]} O-O {[%emt 0:00:31]} 23. Qe2 {[%emt 0:00:01] [#]} (23. f5 $11 {keeps the balance.}) 23... b5 $1 $17 {[%emt 0:00:03]} 24. Qe5 {[%emt 0:00:04]} b4 {[%emt 0:00:07]} 25. Ne4 {[%emt 0:00:03]} f6 {[%emt 0:00:04]} 26. Qd6 {[%emt 0:00:01]} (26. Qc5 $15 Qd7 27. Re1) 26... Qxd6 $19 {[%emt 0:00:06]} 27. Nxd6 {[%emt 0:00:01][%mdl 4096] Endgame KRB-KRN} Bd5 {[%emt 0:00:02]} ({Better is} 27... c3 $19 {...Rd8 is the strong threat.} 28. bxc3 Rd8) 28. Rc1 $11 {[%emt 0:00:01]} c3 {[%emt 0:00:03]} 29. bxc3 {[%emt 0:00:01]} Rd8 {[%emt 0:00:00]} 30. Nb5 {[%emt 0:00:03]} ({White should try} 30. c4 $11) 30... Rb8 {[%emt 0:00:03]} (30... Rc8 $1 $15 31. Nxa7 Rxc3) 31. c4 {[%emt 0:00:02]} Bxc4 {[%emt 0:00:02][%mdl 64] Remove Defender} 32. Rxc4 {[%emt 0:00:01]} Rxb5 {[%emt 0:00:01] KR-KR} 33. Rc8+ {[%emt 0:00:02]} Kh7 {[%emt 0:00:00]} 34. Rc6 {[%emt 0:00:02]} Ra5 {[%emt 0:00:01]} 35. Rxe6 $2 {[%emt 0:00:01][%mdl 8192]} (35. Rc4 $11) 35... Rxa2 $19 {[%emt 0:00:01]} 36. Re7 {[%emt 0:00:02]} a5 {[%emt 0:00:01]} 37. d5 {[%emt 0:00:00]} a4 {[%emt 0:00:02]} (37... b3 $142 38. Rb7 b2) 38. d6 {[%emt 0:00:02]} (38. Rb7 $142 a3 39. Rxb4) 38... b3 {[%emt 0:00:02]} (38... a3 $142 {( -> ...Rd2)} 39. Rb7 Rd2 40. Rxb4 a2) 39. d7 {[%emt 0:00:01]} (39. Rb7 $19) 39... Rd2 {[%emt 0:00:01] Black mates.} 40. Kf1 {[%emt 0:00:01]} b2 {[%emt 0:00:01]} 41. Ke1 {[%emt 0:00:01]} Rd4 {[%emt 0:00:02] Weighted Error Value: White=0.88/Black=0.53} 0-1